fUSD/lending_fUSD_20251227
["ID","MTS","AMOUNT","RATE_DAILY","PERIOD"]
[399895821,1766829724692,200.0,0.00012942,2]
[399895822,1766829724996,200.0,0.00012942,2]
[399895824,1766829728457,151.0,0.00012942,2]
[399895825,1766829729043,151.0,0.00012942,2]
[399895826,1766829729644,151.0,0.00012942,2]
[399895827,1766829730282,151.0,0.00012942,2]
[399895828,1766829730723,500.0,0.00012942,2]
[399895829,1766829730909,151.0,0.00012942,2]
[399895830,1766829730988,151.0,0.00012942,2]
[399895831,1766829731356,343.69351544,0.00012942,2]
[399895832,1766829731379,156.30648456,0.00012942,2]
[399895833,1766829731504,151.0,0.00012942,2]
[399895834,1766829731573,151.0,0.00012942,2]
[399895835,1766829731988,500.0,0.00012942,2]
[399895836,1766829732099,151.0,0.00012942,2]
[399895837,1766829732186,151.0,0.00012942,2]
[399895838,1766829732604,500.0,0.00012942,2]
[399895839,1766829732725,151.0,0.00012942,2]
[399895840,1766829732814,151.0,0.00012942,2]
[399895841,1766829733390,151.0,0.00012942,2]
[399895842,1766829733431,151.0,0.00012942,2]
[399895843,1766829733590,500.0,0.00012942,2]
[399895844,1766829733991,151.0,0.00012942,2]
[399895845,1766829734030,151.0,0.00012942,2]
[399895846,1766829734177,500.0,0.00012942,2]
[399895847,1766829734677,151.0,0.00012942,2]
[399895848,1766829734724,151.0,0.00012942,2]
[399895849,1766829734813,500.0,0.00012942,2]
[399895850,1766829735237,151.0,0.00012942,2]
[399895851,1766829735288,151.0,0.00012942,2]
[399895852,1766829735416,500.0,0.00012942,2]
[399895853,1766829735820,151.0,0.00012942,2]
[399895854,1766829735867,151.0,0.00012942,2]
[399895855,1766829736163,500.0,0.00012942,2]
[399895856,1766829736434,151.0,0.00012942,2]
[399895857,1766829736471,151.0,0.00012942,2]
[399895858,1766829736511,500.0,0.00012942,2]
[399895859,1766829736753,500.0,0.00012942,2]
[399895860,1766829737020,151.0,0.00012942,2]
[399895861,1766829737078,151.0,0.00012942,2]
[399895862,1766829737124,500.0,0.00012942,2]
[399895863,1766829737555,500.0,0.00012942,2]
[399895864,1766829737663,500.0,0.00012942,2]
[399895865,1766829738204,151.0,0.00012942,2]
[399895866,1766829738274,500.0,0.00012942,2]
[399895867,1766829738911,172.70351544,0.00012942,2]
[399895868,1766829738937,327.29648456,0.00012942,2]
[399895869,1766829739325,151.0,0.00012942,2]
[399895870,1766829739505,500.0,0.00012942,2]
[399895871,1766829739949,151.0,0.00012942,2]
[399895872,1766829740107,500.0,0.00012942,2]
[399895873,1766829740499,200.0,0.00012942,2]
[399895874,1766829740593,151.0,0.00012942,2]
[399895875,1766829740721,500.0,0.00012942,2]
[399895876,1766829741201,151.0,0.00012942,2]
[399895877,1766829741351,500.0,0.00012942,2]
[399895878,1766829741948,500.0,0.00012942,2]
[399895879,1766829742520,500.0,0.00012942,2]
[399895880,1766829744237,500.0,0.00012942,2]
[399895881,1766829748057,297.39282989,0.00012942,2]
[399895882,1766829757159,208.56207089,0.00012896,2]
[399895883,1766829768553,215.11111349,0.00012896,2]
[399895884,1766829773896,-1060.1599741,0.0001295,2]
[399895885,1766829775457,-299.3087587,0.0001295,2]
[399895886,1766829781314,-256.79390013,0.0001295,2]
[399895888,1766829782568,300.0,0.00012949,2]
[399895889,1766829782760,150.0,0.00012949,2]
[399895890,1766829782886,-431.75930457,0.0001295,2]
[399895891,1766829784298,-166.93819676,0.0001295,2]
[399895893,1766829786575,999.0,0.00013296,3]
[399895894,1766829787038,-243.22392147,0.0001295,2]
[399895897,1766829789915,1200.0,0.00012949,2]
[399895898,1766829790464,-302.00611386,0.0001295,2]
[399895899,1766829791867,-238.0,0.0001295,2]
[399895900,1766829797209,10000.0,0.00030137,120]
[399895901,1766829797373,-319.47994353,0.0001295,2]
[399895902,1766829799953,-279.46116403,0.0001295,2]
[399895903,1766829805174,-243.80804706,0.0001295,2]
[399895904,1766829806596,-390.0,0.0001295,2]
[399895905,1766829808926,-242.78048737,0.0001295,2]
[399895906,1766829810147,-469.56049341,0.0001295,2]
[399895907,1766829811803,-243.11394327,0.0001295,2]
[399895908,1766829813802,-218.97806842,0.0001295,2]
[399895909,1766829816481,-369.7593055,0.0001295,2]
[399895910,1766829821742,-155.26093895,0.0001295,2]
[399895911,1766829823842,-387.67651302,0.0001295,2]
[399895912,1766829831403,-213.09068168,0.0001295,2]
[399895913,1766829834767,-521.77459167,0.0001295,2]
[399895914,1766829837945,-235.73486716,0.0001295,2]
[399895915,1766829840002,-259.36606633,0.0001295,2]
[399895916,1766829841301,300.0,0.00012949,2]
[399895917,1766829845540,2697.64750117,0.0001285,2]
[399895918,1766829845564,3656.9381462,0.0001285,2]
[399895919,1766829845885,-258.31429703,0.0001295,2]
[399895920,1766829847425,-174.72569709,0.0001295,2]
[399895921,1766829853720,-276.18542143,0.0001295,2]
[399895922,1766829855305,-703.30915352,0.0001295,2]
[399895923,1766829861195,-215.48741753,0.0001295,2]
[399895924,1766829862719,-286.11407827,0.0001295,2]
[399895925,1766829865927,-325.56477699,0.0001295,2]
[399895926,1766829870384,-218.4614165,0.0001295,2]
[399895927,1766829871756,-240.72728583,0.0001295,2]
[399895928,1766829873187,-341.16975742,0.0001295,2]
[399895929,1766829874757,-313.01347322,0.0001295,2]
[399895930,1766829876820,-162.74,0.0001295,2]
[399895931,1766829880366,-238.02179816,0.0001295,2]
[399895932,1766829882321,-222.8058211,0.0001295,2]
[399895933,1766829883811,-202.2247571,0.0001295,2]
[399895934,1766829885318,-287.94946186,0.0001295,2]
[399895935,1766829888014,-300.0,0.0001295,2]
[399895936,1766829890028,-162.8662351,0.0001295,2]
[399895937,1766829892080,-170.87836276,0.0001295,2]
[399895938,1766829895775,-194.10623019,0.0001295,2]
[399895939,1766829900842,-159.44808783,0.0001295,2]
[399895940,1766829901508,300.0,0.00012949,2]
[399895941,1766829901545,1200.0,0.00012949,2]
[399895942,1766829901580,300.0,0.00012949,2]
[399895943,1766829902566,-275.6584545,0.0001295,2]
[399895944,1766829904379,-200.13488385,0.0001295,2]
[399895945,1766829910530,-342.9528579,0.0001295,2]
[399895946,1766829912741,-415.60601092,0.0001295,2]
[399895947,1766829914526,-500.0,0.0001295,2]
[399895948,1766829916537,-324.40644022,0.0001295,2]
[399895949,1766829918630,-273.52029713,0.0001295,2]
[399895950,1766829920748,-352.18656946,0.0001295,2]
[399895951,1766829923054,-251.1868518,0.0001295,2]
[399895952,1766829953925,188.22222433,0.0001285,2]
[399895953,1766829961311,300.0,0.00012949,2]
[399895954,1766829962404,300.0,0.00012949,2]
[399895955,1766829963071,150.0,0.00012949,2]
[399895956,1766829979252,500.0,0.00012949,2]
[399895957,1766829985031,499.37969359,0.00012949,2]
[399895958,1766829992525,500.0,0.00012949,2]
[399895959,1766829992569,500.0,0.00012949,2]
[399895960,1766829992631,438.43990889,0.00012949,2]
[399895961,1766829993910,443.19154577,0.00012949,2]
[399895962,1766830024898,500.0,0.00012942,2]
[399895963,1766830032920,223.83848122,0.00012942,2]
[399895964,1766830032943,276.16151878,0.00012942,2]
[399895965,1766830033521,500.0,0.00012942,2]
[399895966,1766830034102,500.0,0.00012942,2]
[399895967,1766830034913,500.0,0.00012942,2]
[399895969,1766830035344,500.0,0.00012942,2]
[399895970,1766830035951,500.0,0.00012942,2]
[399895971,1766830036546,500.0,0.00012942,2]
[399895972,1766830037146,500.0,0.00012942,2]
[399895973,1766830037756,500.0,0.00012942,2]
[399895974,1766830038342,500.0,0.00012942,2]
[399895975,1766830038904,500.0,0.00012942,2]
[399895976,1766830038955,500.0,0.00012942,2]
[399895977,1766830039533,500.0,0.00012942,2]
[399895978,1766830040158,500.0,0.00012942,2]
[399895979,1766830040725,500.0,0.00012942,2]
[399895980,1766830040778,200.0,0.00012942,2]
[399895981,1766830041315,500.0,0.00012942,2]
[399895982,1766830041912,500.0,0.00012942,2]
[399895983,1766830042542,500.0,0.00012942,2]
[399895984,1766830043177,500.0,0.00012942,2]
[399895985,1766830043299,166.66,0.00012444,2]
[399895986,1766830043714,166.66,0.00012706,2]
[399895987,1766830043779,190.52848122,0.00012942,2]
[399895988,1766830043804,309.47151878,0.00012942,2]
[399896002,1766830044378,500.0,0.00012942,2]
[399896007,1766830045001,500.0,0.00012942,2]
[399896008,1766830045763,151.0,0.00012942,2]
[399896009,1766830046386,151.0,0.00012942,2]
[399896010,1766830047034,151.0,0.00012942,2]
[399896011,1766830047639,151.0,0.00012942,2]
[399896012,1766830048134,200.0,0.00012942,2]
[399896013,1766830048379,151.0,0.00012942,2]
[399896014,1766830049345,151.0,0.00012942,2]
[399896015,1766830049452,200.0,0.00012942,2]
[399896016,1766830049563,151.0,0.00012942,2]
[399896017,1766830050183,151.0,0.00012942,2]
[399896018,1766830050778,151.0,0.00012942,2]
[399896019,1766830051392,151.0,0.00012942,2]
[399896020,1766830051986,151.0,0.00012942,2]
[399896021,1766830053105,151.0,0.00012942,2]
[399896022,1766830053747,151.0,0.00012942,2]
[399896023,1766830054360,151.0,0.00012942,2]
[399896024,1766830054968,151.0,0.00012942,2]
[399896025,1766830055563,151.0,0.00012942,2]
[399896026,1766830056181,151.0,0.00012942,2]
[399896027,1766830056803,151.0,0.00012942,2]
[399896028,1766830057469,151.0,0.00012942,2]
[399896029,1766830058103,151.0,0.00012942,2]
[399896030,1766830058724,151.0,0.00012942,2]
[399896031,1766830059319,151.0,0.00012942,2]
[399896032,1766830060204,151.0,0.00012942,2]
[399896033,1766830060700,151.0,0.00012942,2]
[399896034,1766830061290,151.0,0.00012942,2]
[399896035,1766830061913,151.0,0.00012942,2]
[399896036,1766830063119,151.0,0.00012942,2]
[399896037,1766830063744,151.0,0.00012942,2]
[399896038,1766830064328,151.0,0.00012942,2]
[399896039,1766830064936,151.0,0.00012942,2]
[399896040,1766830065521,151.0,0.00012942,2]
[399896041,1766830076860,9238.07246094,0.0001285,2]
[399896044,1766830090104,6.93753906,0.00012949,2]
[399896045,1766830090127,1193.06246094,0.00012949,2]
[399896046,1766830141418,300.0,0.00012949,2]
[399896047,1766830142955,150.0,0.00012949,2]
[399896048,1766830144015,164.69444628,0.0001285,2]
[399896105,1766830201173,300.0,0.00012949,2]
[399896106,1766830201211,300.0,0.00012949,2]
[399896107,1766830201249,1200.0,0.00012949,2]
[399896108,1766830203378,6392.25309278,0.0001285,2]
[399896109,1766830203410,10000.01,0.0001285,2]
[399896110,1766830203438,10000.01,0.0001285,2]
[399896111,1766830203467,10000.01,0.0001285,2]
[399896112,1766830203495,10000.01,0.0001285,2]
[399896113,1766830203524,10000.01,0.0001285,2]
[399896114,1766830203552,10000.01,0.0001285,2]
[399896115,1766830203580,10000.01,0.0001285,2]
[399896116,1766830203607,10000.01,0.0001285,2]
[399896117,1766830203635,10000.01,0.0001285,2]
[399896118,1766830204412,-377.09126673,0.0001285,2]
[399896119,1766830212968,-3151.82298934,0.0001285,2]
[399896120,1766830213003,-10000.01,0.0001285,2]
[399896121,1766830216172,-10000.01,0.0001285,2]
[399896122,1766830216414,-10000.01,0.0001285,2]
[399896123,1766830216561,-10000.01,0.0001285,2]
[399896124,1766830216654,-10000.01,0.0001285,2]
[399896125,1766830216779,-10000.01,0.0001285,2]
[399896126,1766830216935,-10000.01,0.0001285,2]
[399896127,1766830217056,-10000.01,0.0001285,2]
[399896128,1766830217156,-10000.01,0.0001285,2]
[399896129,1766830217278,-10000.01,0.0001285,2]
[399896130,1766830219331,-10000.01,0.0001285,2]
[399896131,1766830222291,-10000.01,0.0001285,2]
[399896132,1766830222482,-10000.01,0.0001285,2]
[399896133,1766830222596,-10000.01,0.0001285,2]
[399896134,1766830222700,-10000.01,0.0001285,2]
[399896135,1766830222829,-10000.01,0.0001285,2]
[399896136,1766830222958,-10000.01,0.0001285,2]
[399896137,1766830223084,-10000.01,0.0001285,2]
[399896138,1766830223200,-10000.01,0.0001285,2]
[399896139,1766830223343,-10000.01,0.0001285,2]
[399896140,1766830228343,-10000.01,0.0001285,2]
[399896141,1766830228529,-10000.01,0.0001285,2]
[399896142,1766830228704,-10000.01,0.0001285,2]
[399896143,1766830228864,-10000.01,0.0001285,2]
[399896144,1766830229023,-10000.01,0.0001285,2]
[399896145,1766830229764,-10000.01,0.0001285,2]
[399896146,1766830229874,-10000.01,0.0001285,2]
[399896147,1766830230000,-10000.01,0.0001285,2]
[399896148,1766830230144,-10000.01,0.0001285,2]
[399896149,1766830230294,-10000.01,0.0001285,2]
[399896151,1766830232116,-518.44637522,0.0001285,2]
[399896152,1766830232169,-543246.90910864,0.0001285,2]
[399896153,1766830232183,-40832.88451175,0.0001285,2]
[399896154,1766830232196,-15480.20265554,0.0001285,2]
[399896155,1766830232208,-599.6765,0.0001285,2]
[399896156,1766830232219,-5719.12708257,0.0001285,2]
[399896157,1766830232231,-206.1780204,0.0001295,2]
[399896158,1766830232242,-206.1780204,0.0001295,2]
[399896159,1766830232253,-250.0,0.0001295,2]
[399896160,1766830232266,-429.75535807,0.0001295,2]
[399896161,1766830232291,-256.0,0.0001295,2]
[399896162,1766830232308,-166.66,0.00012968,2]
[399896163,1766830232319,-250.0,0.00012979,2]
[399896164,1766830232331,-1660.07,0.00013181,2]
[399896165,1766830232345,-166.66,0.0001323,2]
[399896167,1766830232358,-1000.0,0.0001337,2]
[399896168,1766830232371,-500.0,0.0001349,2]
[399896169,1766830232385,-200.0,0.0001349,2]
[399896171,1766830232397,-166.66,0.00013492,2]
[399896172,1766830232409,-200.0,0.00013525,2]
[399896173,1766830232421,-500.0,0.00013525,2]
[399896174,1766830232434,-834.0,0.00013525,2]
[399896175,1766830232445,-150.0,0.00013525,2]
[399896176,1766830232457,-500.0,0.00013525,2]
[399896177,1766830232469,-500.0,0.00013525,2]
[399896178,1766830232479,-500.0,0.00013525,2]
[399896179,1766830232491,-500.0,0.00013525,2]
[399896180,1766830232503,-500.0,0.00013552,2]
[399896181,1766830232514,-834.0,0.00013552,2]
[399896182,1766830232525,-174.82250522,0.00013552,2]
[399896183,1766830232537,-500.0,0.00013552,2]
[399896184,1766830232548,-518.01684681,0.00013552,2]
[399896185,1766830232559,-500.0,0.00013552,2]
[399896186,1766830232572,-500.0,0.00013552,2]
[399896187,1766830232587,-500.0,0.0001358,2]
[399896188,1766830232600,-834.0,0.0001358,2]
[399896189,1766830232617,-500.0,0.0001358,2]
[399896190,1766830232630,-461.27937917,0.0001358,2]
[399896191,1766830232644,-500.0,0.0001358,2]
[399896192,1766830232656,-834.0,0.00013607,2]
[399896193,1766830232669,-500.0,0.00013607,2]
[399896194,1766830232681,-500.0,0.00013607,2]
[399896195,1766830232694,-834.0,0.00013635,2]
[399896196,1766830232706,-309.94071721,0.00013635,2]
[399896197,1766830232719,-488.0,0.00013635,2]
[399896198,1766830232731,-834.0,0.00013662,2]
[399896199,1766830232745,-1660.07,0.0001367,2]
[399896200,1766830232756,-834.0,0.00013689,2]
[399896201,1766830232766,-500.0,0.00013698,2]
[399896202,1766830232777,-500.0,0.00013698,2]
[399896203,1766830232787,-500.0,0.00013698,2]
[399896204,1766830232798,-500.0,0.00013698,2]
[399896205,1766830232809,-500.0,0.00013698,2]
[399896206,1766830232820,-500.0,0.00013698,2]
[399896207,1766830232832,-955.76,0.00013698,2]
[399896208,1766830232843,-500.0,0.00013698,2]
[399896209,1766830232853,-500.0,0.00013698,2]
[399896210,1766830232864,-500.0,0.00013698,2]
[399896211,1766830232876,-500.0,0.00013698,2]
[399896212,1766830232889,-350.77,0.00013699,2]
[399896213,1766830232901,-9135.11,0.00013699,2]
[399896214,1766830232913,-15320.38417899,0.00013699,2]
[399896215,1766830232930,-8030.13582101,0.00013699,2]
[399896216,1766830232941,-9999.99,0.00013699,2]
[399896217,1766830232956,-500.0,0.00013699,2]
[399896218,1766830232967,-500.0,0.00013699,2]
[399896219,1766830232978,-500.0,0.00013699,2]
[399896220,1766830232988,-530.54827687,0.00013699,2]
[399896221,1766830232999,-288.68,0.000137,2]
[399896222,1766830233010,-834.0,0.00013717,2]
[399896223,1766830233021,-150.0,0.00013744,2]
[399896224,1766830233032,-150.0,0.00013744,2]
[399896225,1766830233042,-150.0,0.00013744,2]
[399896226,1766830233053,-834.0,0.00013744,2]
[399896227,1766830233065,-166.66,0.00013754,2]
[399896228,1766830233076,-244.23455351,0.00013771,2]
[399896229,1766830233089,-150.0,0.00013771,2]
[399896230,1766830233101,-834.0,0.00013772,2]
[399896231,1766830233113,-150.0,0.00013799,2]
[399896232,1766830233124,-834.0,0.00013799,2]
[399896233,1766830233139,-250.0,0.00013826,2]
[399896234,1766830233162,-834.0,0.00013826,2]
[399896235,1766830233175,-296.45670779,0.0001384,2]
[399896236,1766830233188,-464.73598126,0.0001384,2]
[399896237,1766830233202,-500.0,0.0001384,2]
[399896238,1766830233215,-616.40370379,0.0001384,2]
[399896239,1766830233228,-500.0,0.0001384,2]
[399896240,1766830233239,-198.84479531,0.0001384,2]
[399896241,1766830233252,-163.94576433,0.0001384,2]
[399896242,1766830233265,-282.95746373,0.0001384,2]
[399896243,1766830233278,-150.58571598,0.0001384,2]
[399896244,1766830233292,-23110.94011379,0.00013841,2]
[399896245,1766830233340,-1293.92,0.00012844,2]
[399896246,1766830233357,-771.02711756,0.00013841,2]
[399896247,1766830233378,-1848.46471605,0.00013841,2]
[399896248,1766830233393,-1300.0,0.00013841,2]
[399896249,1766830236735,931.56179346,0.00012849,2]
[399896250,1766830236775,931.56179346,0.00012849,2]
[399896251,1766830236813,931.56179346,0.00012849,2]
[399896252,1766830236852,931.56179346,0.00012849,2]
[399896253,1766830236890,931.56179346,0.00012849,2]
[399896254,1766830236932,931.56179346,0.00012849,2]
[399896255,1766830236969,931.56179346,0.00012849,2]
[399896256,1766830237008,931.56179346,0.00012849,2]
[399896257,1766830237045,931.56179346,0.00012849,2]
[399896258,1766830237108,931.56179346,0.00012849,2]
[399896259,1766830237155,684.3920654,0.00012849,2]
[399896260,1766830237180,247.16972806,0.00012849,2]
[399896261,1766830237232,931.56179346,0.00012849,2]
[399896262,1766830237288,931.56179346,0.00012849,2]
[399896263,1766830237339,931.56179346,0.00012849,2]
[399896264,1766830237410,931.56179346,0.00012849,2]
[399896265,1766830237461,931.56179346,0.00012849,2]
[399896266,1766830237509,931.56179346,0.00012849,2]
[399896267,1766830237560,931.56179346,0.00012849,2]
[399896268,1766830237609,931.56179346,0.00012849,2]
[399896269,1766830237674,931.56179346,0.00012849,2]
[399896270,1766830237756,931.56179346,0.00012849,2]
[399896271,1766830237802,437.22233734,0.00012849,2]
[399896272,1766830237827,494.33945612,0.00012849,2]
[399896273,1766830237865,931.56179346,0.00012849,2]
[399896274,1766830237912,931.56179346,0.00012849,2]
[399896275,1766830237964,931.56179346,0.00012849,2]
[399896276,1766830238014,931.56179346,0.00012849,2]
[399896277,1766830238058,931.56179346,0.00012849,2]
[399896278,1766830238223,931.56179346,0.00012849,2]
[399896279,1766830238273,931.56179346,0.00012849,2]
[399896280,1766830238319,931.56179346,0.00012849,2]
[399896281,1766830238367,931.56179346,0.00012849,2]
[399896282,1766830238419,931.56179346,0.00012849,2]
[399896286,1766830238464,190.05260928,0.00012849,2]
[399896290,1766830238489,741.50918418,0.00012849,2]
[399896296,1766830238541,931.56179346,0.00012849,2]
[399896302,1766830238589,931.56179346,0.00012849,2]
[399896310,1766830238664,931.56179346,0.00012849,2]
[399896315,1766830238702,931.56179346,0.00012849,2]
[399896320,1766830238754,931.56179346,0.00012849,2]
[399896325,1766830238797,931.56179346,0.00012849,2]
[399896331,1766830238842,931.56179346,0.00012849,2]
[399896336,1766830238884,931.56179346,0.00012849,2]
[399896341,1766830238926,931.56179346,0.00012849,2]
[399896346,1766830238966,874.44467468,0.00012849,2]
[399896351,1766830239005,-57.11711878,0.00012849,2]
[399896353,1766830239015,-931.56179346,0.00012849,2]
[399896355,1766830239024,-931.56179346,0.00012849,2]
[399896357,1766830239033,-170.06091965,0.00013699,2]
[399896359,1766830239043,-48362.42421319,0.00013841,2]
[399896361,1766830239052,-214.87767904,0.00013841,2]
[399896363,1766830239062,-834.0,0.00013854,2]
[399896364,1766830239071,-834.0,0.00013881,2]
[399896366,1766830239080,-834.0,0.00013909,2]
[399896368,1766830239090,-834.0,0.00013936,2]
[399896370,1766830239099,-150.0,0.00013937,2]
[399896372,1766830239109,-834.0,0.00013963,2]
[399896374,1766830239119,-955.76,0.00013972,2]
[399896376,1766830239129,-150.0,0.0001399,2]
[399896378,1766830239139,-834.0,0.00013991,2]
[399896380,1766830239150,-150.0,0.00014017,2]
[399896382,1766830239160,-605.58665525,0.00014018,2]
[399896385,1766830239172,-228.41334475,0.00014018,2]
[399896387,1766830239181,-99.90625443,0.00014038,2]
[399896388,1766830239193,-400.09374557,0.00014038,2]
[399896389,1766830239203,-317.97791297,0.00014038,2]
[399896390,1766830239213,-156.05834146,0.00014045,2]
[399896391,1766830239264,-582.66729979,0.00012849,2]
[399896392,1766830240217,-348.89449367,0.00012849,2]
[399896393,1766830240231,-931.56179346,0.00012849,2]
[399896394,1766830240240,-931.56179346,0.00012849,2]
[399896395,1766830240249,-931.56179346,0.00012849,2]
[399896396,1766830240258,-464.69485041,0.00012849,2]
[399896397,1766830240270,-466.86694305,0.00012849,2]
[399896398,1766830240280,-931.56179346,0.00012849,2]
[399896399,1766830240289,-931.56179346,0.00012849,2]
[399896400,1766830240299,-931.56179346,0.00012849,2]
[399896401,1766830240309,-931.56179346,0.00012849,2]
[399896402,1766830240318,-931.56179346,0.00012849,2]
[399896403,1766830240328,-931.56179346,0.00012849,2]
[399896404,1766830240338,-931.56179346,0.00012849,2]
[399896405,1766830240348,-931.56179346,0.00012849,2]
[399896406,1766830240357,-931.56179346,0.00012849,2]
[399896407,1766830240367,-931.56179346,0.00012849,2]
[399896408,1766830240376,-931.56179346,0.00012849,2]
[399896409,1766830240386,-931.56179346,0.00012849,2]
[399896410,1766830240395,-736.67995399,0.00012849,2]
[399896411,1766830240407,-194.88183947,0.00012849,2]
[399896412,1766830240416,-931.56179346,0.00012849,2]
[399896413,1766830240427,-931.56179346,0.00012849,2]
[399896414,1766830240436,-931.56179346,0.00012849,2]
[399896415,1766830240446,-931.56179346,0.00012849,2]
[399896416,1766830240455,-931.56179346,0.00012849,2]
[399896417,1766830240466,-931.56179346,0.00012849,2]
[399896418,1766830240475,-931.56179346,0.00012849,2]
[399896419,1766830240484,-931.56179346,0.00012849,2]
[399896420,1766830240493,-931.56179346,0.00012849,2]
[399896421,1766830240503,-931.56179346,0.00012849,2]
[399896422,1766830240512,-931.56179346,0.00012849,2]
[399896423,1766830240521,-931.56179346,0.00012849,2]
[399896424,1766830240530,-931.56179346,0.00012849,2]
[399896425,1766830240539,-931.56179346,0.00012849,2]
[399896426,1766830240548,-931.56179346,0.00012849,2]
[399896427,1766830240557,-931.56179346,0.00012849,2]
[399896428,1766830240566,-931.56179346,0.00012849,2]
[399896429,1766830240575,-931.56179346,0.00012849,2]
[399896430,1766830240585,-931.56179346,0.00012849,2]
[399896431,1766830240594,-931.56179346,0.00012849,2]
[399896432,1766830240603,-931.56179346,0.00012849,2]
[399896433,1766830240612,-931.56179346,0.00012849,2]
[399896434,1766830240622,-931.56179346,0.00012849,2]
[399896435,1766830240632,-931.56179346,0.00012849,2]
[399896436,1766830240641,-43.94165854,0.00014045,2]
[399896437,1766830240651,-834.0,0.00014046,2]
[399896438,1766830240660,-255.0,0.0001405,2]
[399896439,1766830240670,-834.0,0.00014073,2]
[399896440,1766830240679,-834.0,0.000141,2]
[399896441,1766830240688,-834.0,0.00014128,2]
[399896442,1766830240698,-839.0,0.00014155,2]
[399896443,1766830240707,-1660.07,0.00014158,2]
[399896444,1766830240717,-500.0,0.00014193,2]
[399896445,1766830240726,-574.12855637,0.00014193,2]
[399896446,1766830240736,-500.0,0.00014193,2]
[399896447,1766830240745,-500.0,0.00014193,2]
[399896448,1766830240755,-584.52624806,0.00014193,2]
[399896449,1766830240763,-500.0,0.00014193,2]
[399896450,1766830240772,-500.0,0.00014193,2]
[399896451,1766830240782,-500.0,0.00014193,2]
[399896452,1766830240791,-500.0,0.00014193,2]
[399896453,1766830240800,-500.0,0.00014193,2]
[399896454,1766830240809,-500.0,0.00014193,2]
[399896455,1766830240818,-500.0,0.00014193,2]
[399896456,1766830240827,-500.0,0.00014193,2]
[399896457,1766830240836,-500.0,0.00014193,2]
[399896458,1766830240845,-500.0,0.00014193,2]
[399896459,1766830240854,-500.0,0.00014193,2]
[399896460,1766830240863,-500.0,0.00014193,2]
[399896461,1766830240873,-500.0,0.00014193,2]
[399896462,1766830240882,-500.0,0.00014193,2]
[399896463,1766830240891,-500.0,0.00014193,2]
[399896464,1766830240900,-500.0,0.00014193,2]
[399896465,1766830240909,-500.0,0.00014193,2]
[399896466,1766830240918,-500.0,0.00014193,2]
[399896467,1766830240928,-500.0,0.00014193,2]
[399896468,1766830240938,-500.0,0.00014193,2]
[399896469,1766830240947,-500.0,0.00014193,2]
[399896470,1766830240956,-500.0,0.00014193,2]
[399896471,1766830240965,-500.0,0.00014193,2]
[399896472,1766830240976,-500.0,0.00014193,2]
[399896473,1766830240985,-462.02607038,0.00014193,2]
[399896474,1766830240994,-250.0,0.00014193,2]
[399896475,1766830241003,-261.33546544,0.00014193,2]
[399896476,1766830241013,-200.0,0.00014193,2]
[399896477,1766830241023,-207.4,0.00014193,2]
[399896478,1766830241032,-620.0,0.00014193,2]